[Event "Live Chess"]
[Site "Chess.com"]
[Date "2023.05.21"]
[Round "-"]
[White "ViktorTheCoolBoy"]
[Black "Tushinskiy"]
[Result "1-0"]
[WhiteElo "2494"]
[BlackElo "2210"]
[TimeControl "300"]
[EndTime "21:04:56 PDT"]
[Termination "ViktorTheCoolBoy won by resignation"]

1. e4 {[%clk 0:04:57.6]} 1... e5 {[%clk 0:04:55.7]} 2. Nf3 {[%clk 0:04:56.6]}
2... d6 {[%clk 0:04:54.7]} 3. Bc4 {[%clk 0:04:49.1]} 3... Bg4 {[%clk 0:04:53.7]}
4. Nc3 {[%clk 0:04:44.2]} 4... Nf6 {[%clk 0:04:50.8]} 5. O-O {[%clk 0:04:40.8]}
5... Nbd7 {[%clk 0:04:49.3]} 6. h3 {[%clk 0:04:39.5]} 6... Bh5 {[%clk 0:04:48]}
7. Be2 {[%clk 0:04:36.1]} 7... Be7 {[%clk 0:04:46.7]} 8. d4 {[%clk 0:04:34.2]}
8... c6 {[%clk 0:04:45.6]} 9. Be3 {[%clk 0:04:31.8]} 9... Qc7 {[%clk 0:04:44.1]}
10. Qd2 {[%clk 0:04:22.2]} 10... O-O {[%clk 0:04:41.1]} 11. Rad1 {[%clk
0:04:19.7]} 11... Rfd8 {[%clk 0:04:32.9]} 12. Qc1 {[%clk 0:04:05.5]} 12... a6
{[%clk 0:04:27.5]} 13. Rfe1 {[%clk 0:04:03]} 13... b5 {[%clk 0:04:26.2]} 14. a3
{[%clk 0:03:59.2]} 14... Rac8 {[%clk 0:04:16.5]} 15. Nh4 {[%clk 0:03:56.4]}
15... Bg6 {[%clk 0:04:14.7]} 16. Nxg6 {[%clk 0:03:53.7]} 16... hxg6 {[%clk
0:04:14.6]} 17. Qb1 {[%clk 0:03:48.2]} 17... c5 {[%clk 0:04:04.4]} 18. dxe5
{[%clk 0:03:46.5]} 18... dxe5 {[%clk 0:04:03]} 19. Nd5 {[%clk 0:03:38.8]} 19...
Nxd5 {[%clk 0:04:01.6]} 20. exd5 {[%clk 0:03:37.8]} 20... c4 {[%clk 0:04:00.6]}
21. c3 {[%clk 0:03:32.9]} 21... Nf6 {[%clk 0:03:56.7]} 22. a4 {[%clk 0:03:24.7]}
22... Nxd5 {[%clk 0:03:53.3]} 23. axb5 {[%clk 0:03:23.5]} 23... axb5 {[%clk
0:03:53.2]} 24. Qe4 {[%clk 0:03:18.5]} 24... f5 {[%clk 0:03:46.4]} 25. Qxd5+
{[%clk 0:03:17.4]} 25... Rxd5 {[%clk 0:03:45.1]} 26. Rxd5 {[%clk 0:03:17.3]}
26... Rd8 {[%clk 0:03:36.6]} 27. Red1 {[%clk 0:03:15.8]} 27... Rxd5 {[%clk
0:03:35.4]} 28. Rxd5 {[%clk 0:03:15.7]} 28... Kh7 {[%clk 0:03:33.4]} 29. g4
{[%clk 0:03:07.9]} 29... f4 {[%clk 0:03:31.5]} 30. Bc1 {[%clk 0:03:06]} 30... b4
{[%clk 0:03:30.2]} 31. Bf3 {[%clk 0:03:03.9]} 31... bxc3 {[%clk 0:03:28.6]} 32.
bxc3 {[%clk 0:03:02.5]} 32... Bf6 {[%clk 0:03:24.2]} 33. Be4 {[%clk 0:03:00.8]}
33... Qa7 {[%clk 0:03:20.4]} 34. Kg2 {[%clk 0:02:58.5]} 34... Qa1 {[%clk
0:03:18.3]} 35. Bd2 {[%clk 0:02:56.8]} 35... Qb2 {[%clk 0:03:08.7]} 36. Rd6
{[%clk 0:02:50.2]} 36... Qb8 {[%clk 0:02:55.7]} 37. Rd5 {[%clk 0:02:41.6]} 37...
Qc8 {[%clk 0:02:53.4]} 38. Kf3 {[%clk 0:02:38.8]} 38... Qa6 {[%clk 0:02:46.2]}
39. h4 {[%clk 0:02:36.3]} 39... Bxh4 {[%clk 0:02:33.8]} 40. Rxe5 {[%clk
0:02:34.6]} 40... Qa2 {[%clk 0:02:28.6]} 41. Rd5 {[%clk 0:02:18.1]} 41... Qa1
{[%clk 0:02:22.8]} 42. Bxf4 {[%clk 0:02:12.1]} 42... Qxc3+ {[%clk 0:02:16.8]}
43. Kg2 {[%clk 0:02:07.5]} 43... Bf6 {[%clk 0:02:04.8]} 44. Bd6 {[%clk
0:01:48.2]} 44... Qe1 {[%clk 0:01:56.3]} 45. Rh5+ {[%clk 0:01:45.9]} 45... Kg8
{[%clk 0:01:54.9]} 46. Bd5+ {[%clk 0:01:45]} 1-0

[Event "Live Chess"]
[Site "Chess.com"]
[Date "2023.05.21"]
[Round "-"]
[White "chessfiction"]
[Black "Biranidun"]
[Result "1/2-1/2"]
[WhiteElo "2353"]
[BlackElo "2522"]
[TimeControl "300"]
[EndTime "21:05:43 PDT"]
[Termination "Game drawn - insufficient material"]

1. e4 {[%clk 0:04:58.6]} 1... c5 {[%clk 0:04:58.9]} 2. Nf3 {[%clk 0:04:57.1]}
2... d6 {[%clk 0:04:58.4]} 3. d4 {[%clk 0:04:57]} 3... cxd4 {[%clk 0:04:58.2]}
4. Nxd4 {[%clk 0:04:56.7]} 4... Nf6 {[%clk 0:04:57.9]} 5. Nc3 {[%clk 0:04:56]}
5... g6 {[%clk 0:04:57.7]} 6. f4 {[%clk 0:04:55.5]} 6... Nc6 {[%clk 0:04:56.4]}
7. Bb5 {[%clk 0:04:53.9]} 7... Bd7 {[%clk 0:04:55.3]} 8. Be3 {[%clk 0:04:52]}
8... Bg7 {[%clk 0:04:53.2]} 9. O-O {[%clk 0:04:50.7]} 9... Ng4 {[%clk
0:04:42.7]} 10. Bxc6 {[%clk 0:04:40.8]} 10... bxc6 {[%clk 0:04:39.7]} 11. Qf3
{[%clk 0:04:25.8]} 11... Nxe3 {[%clk 0:04:37.8]} 12. Qxe3 {[%clk 0:04:24.9]}
12... Qb6 {[%clk 0:04:37.2]} 13. e5 {[%clk 0:04:16.5]} 13... O-O {[%clk
0:04:09.7]} 14. Na4 {[%clk 0:04:09.9]} 14... Qa5 {[%clk 0:04:07.9]} 15. Nc3
{[%clk 0:03:54.1]} 15... dxe5 {[%clk 0:04:06.4]} 16. Nb3 {[%clk 0:03:51.8]}
16... Qb6 {[%clk 0:04:02]} 17. Rae1 {[%clk 0:03:44.3]} 17... exf4 {[%clk
0:03:58.5]} 18. Qxb6 {[%clk 0:03:42.4]} 18... axb6 {[%clk 0:03:57.4]} 19. Rxe7
{[%clk 0:03:42.3]} 19... Bf5 {[%clk 0:03:54.7]} 20. Rxf4 {[%clk 0:03:38]} 20...
Bxc2 {[%clk 0:03:45.3]} 21. Nd4 {[%clk 0:03:36.4]} 21... Bxd4+ {[%clk
0:03:36.9]} 22. Rxd4 {[%clk 0:03:36.3]} 22... Bf5 {[%clk 0:03:27.9]} 23. Rc7
{[%clk 0:03:31.4]} 23... Rfc8 {[%clk 0:03:23.2]} 24. Rxc8+ {[%clk 0:03:28.2]}
24... Rxc8 {[%clk 0:03:23.1]} 25. a4 {[%clk 0:03:27]} 25... Kf8 {[%clk
0:03:20.6]} 26. g4 {[%clk 0:03:25.5]} 26... Be6 {[%clk 0:03:19.6]} 27. Ne4
{[%clk 0:03:22.9]} 27... Ke7 {[%clk 0:03:10.7]} 28. g5 {[%clk 0:03:20.9]} 28...
Rd8 {[%clk 0:03:06.2]} 29. Rxd8 {[%clk 0:03:19.6]} 29... Kxd8 {[%clk 0:03:05.4]}
30. Nf6 {[%clk 0:03:18.6]} 30... Bb3 {[%clk 0:03:01.4]} 31. Nxh7 {[%clk
0:03:12.1]} 31... Bxa4 {[%clk 0:02:59.7]} 32. Nf6 {[%clk 0:03:11.7]} 32... Ke7
{[%clk 0:02:59]} 33. Kf2 {[%clk 0:03:10.8]} 33... Ke6 {[%clk 0:02:58.5]} 34. h4
{[%clk 0:03:09.1]} 34... Kf5 {[%clk 0:02:56.3]} 35. Ke3 {[%clk 0:03:06.5]} 35...
c5 {[%clk 0:02:54.5]} 36. Nd5 {[%clk 0:02:53.2]} 36... b5 {[%clk 0:02:53.5]} 37.
Nc3 {[%clk 0:02:40.8]} 37... Kg4 {[%clk 0:02:49.1]} 38. Ne4 {[%clk 0:02:39.6]}
38... c4 {[%clk 0:02:31.4]} 39. Nd6 {[%clk 0:02:36.1]} 39... Kxh4 {[%clk
0:02:30.5]} 40. Nxf7 {[%clk 0:02:31.9]} 40... Bb3 {[%clk 0:02:10.3]} 41. Nd6
{[%clk 0:02:25.6]} 41... b4 {[%clk 0:02:08.2]} 42. Ne4 {[%clk 0:01:43.6]} 42...
Bc2 {[%clk 0:02:04.2]} 43. Nd2 {[%clk 0:01:33.8]} 43... c3 {[%clk 0:01:57.3]}
44. bxc3 {[%clk 0:01:31.5]} 44... bxc3 {[%clk 0:01:57.2]} 45. Nf3+ {[%clk
0:01:29.6]} 45... Kg3 {[%clk 0:01:52]} 46. Nd4 {[%clk 0:01:22.4]} 46... Bb1
{[%clk 0:01:48]} 47. Ne2+ {[%clk 0:01:21]} 47... Kg4 {[%clk 0:01:44.3]} 48. Nxc3
{[%clk 0:01:20.9]} 48... Bf5 {[%clk 0:01:41.6]} 49. Kf2 {[%clk 0:01:13.9]} 49...
Kxg5 {[%clk 0:01:41.4]} 50. Kg3 {[%clk 0:01:12.9]} 50... Kf6 {[%clk 0:01:40.4]}
51. Nd1 {[%clk 0:01:11.2]} 51... Ke5 {[%clk 0:01:39.4]} 52. Ne3 {[%clk
0:01:08.4]} 52... Be6 {[%clk 0:01:38.3]} 53. Ng2 {[%clk 0:01:05.7]} 53... g5
{[%clk 0:01:37]} 54. Ne1 {[%clk 0:01:02.4]} 54... Ke4 {[%clk 0:01:34.4]} 55. Nf3
{[%clk 0:01:00.4]} 55... Kf5 {[%clk 0:01:30.8]} 56. Nxg5 {[%clk 0:00:59.6]}
1/2-1/2

[Event "Live Chess"]
[Site "Chess.com"]
[Date "2023.05.21"]
[Round "-"]
[White "ExIsambard"]
[Black "matt1979"]
[Result "1-0"]
[WhiteElo "1926"]
[BlackElo "1501"]
[TimeControl "300"]
[EndTime "21:07:34 PDT"]
[Termination "ExIsambard won by resignation"]

1. d4 {[%clk 0:04:59.3]} 1... e6 {[%clk 0:04:57.6]} 2. Nf3 {[%clk 0:04:58.7]}
2... f5 {[%clk 0:04:56.2]} 3. Bg5 {[%clk 0:04:58.3]} 3... Nf6 {[%clk 0:04:53.6]}
4. e3 {[%clk 0:04:57.5]} 4... Be7 {[%clk 0:04:49.4]} 5. Bd3 {[%clk 0:04:55.6]}
5... O-O {[%clk 0:04:47.5]} 6. h4 {[%clk 0:04:52.6]} 6... h6 {[%clk 0:04:45.3]}
7. Nbd2 {[%clk 0:04:47.1]} 7... d6 {[%clk 0:04:43.4]} 8. Bxf6 {[%clk 0:04:46.1]}
8... Bxf6 {[%clk 0:04:41.8]} 9. h5 {[%clk 0:04:45.8]} 9... b6 {[%clk 0:04:32.9]}
10. c3 {[%clk 0:04:45]} 10... Bb7 {[%clk 0:04:31.8]} 11. Qb3 {[%clk 0:04:43.2]}
11... Qe8 {[%clk 0:04:29]} 12. Bxf5 {[%clk 0:04:37.7]} 12... d5 {[%clk
0:04:22.4]} 13. Bg6 {[%clk 0:04:34]} 13... Qe7 {[%clk 0:04:18.8]} 14. O-O-O
{[%clk 0:04:32.5]} 14... Nc6 {[%clk 0:04:12.9]} 15. e4 {[%clk 0:04:28.7]} 15...
Na5 {[%clk 0:04:07.1]} 16. Qc2 {[%clk 0:04:26.5]} 16... c5 {[%clk 0:03:56.1]}
17. e5 {[%clk 0:04:16.4]} 17... Bg5 {[%clk 0:03:54.6]} 18. Kb1 {[%clk
0:03:54.8]} 18... cxd4 {[%clk 0:03:50.4]} 19. Nxd4 {[%clk 0:03:52.4]} 19... Bxd2
{[%clk 0:03:31.5]} 20. Qxd2 {[%clk 0:03:44.9]} 20... Nc4 {[%clk 0:03:29.8]} 21.
Qe2 {[%clk 0:03:36.1]} 21... a5 {[%clk 0:03:16.6]} 22. g3 {[%clk 0:03:34.9]}
22... a4 {[%clk 0:03:15.3]} 23. f4 {[%clk 0:03:32]} 23... a3 {[%clk 0:03:11.5]}
24. b3 {[%clk 0:03:30.8]} 24... Na5 {[%clk 0:03:09.2]} 25. Bc2 {[%clk
0:03:16.5]} 25... Nc6 {[%clk 0:03:06.8]} 26. Nb5 {[%clk 0:03:06.7]} 26... Ba6
{[%clk 0:03:02.4]} 27. Bd3 {[%clk 0:02:57.1]} 27... Na7 {[%clk 0:02:43.4]} 28.
Nd6 {[%clk 0:02:53.6]} 28... Bxd3+ {[%clk 0:02:39.3]} 29. Qxd3 {[%clk
0:02:53.4]} 29... Nc6 {[%clk 0:02:33.7]} 30. Rhg1 {[%clk 0:02:42]} 30... Rfd8
{[%clk 0:02:11.5]} 31. Rdf1 {[%clk 0:02:40.1]} 31... Na7 {[%clk 0:01:52.7]} 32.
g4 {[%clk 0:02:37.6]} 32... Nc8 {[%clk 0:01:51.4]} 33. Nb5 {[%clk 0:02:35.5]}
33... Na7 {[%clk 0:01:47.4]} 34. Nd4 {[%clk 0:02:34.1]} 34... Rac8 {[%clk
0:01:41.2]} 35. g5 {[%clk 0:02:32.4]} 35... Kh8 {[%clk 0:01:39.1]} 36. gxh6
{[%clk 0:02:29.2]} 36... gxh6 {[%clk 0:01:38.4]} 37. Rg6 {[%clk 0:02:28.1]}
37... Qh7 {[%clk 0:01:25.5]} 38. Nxe6 {[%clk 0:02:17.2]} 38... Re8 {[%clk
0:01:15.7]} 39. Nd4 {[%clk 0:02:04.5]} 39... Nc6 {[%clk 0:00:54.8]} 40. Nf5
{[%clk 0:01:40.8]} 40... Rg8 {[%clk 0:00:37.8]} 41. Rfg1 {[%clk 0:01:29.1]}
41... Rxg6 {[%clk 0:00:32.8]} 42. hxg6 {[%clk 0:01:25.1]} 1-0

[Event "Live Chess"]
[Site "Chess.com"]
[Date "2023.05.21"]
[Round "-"]
[White "Bob2pen"]
[Black "Doge_Dandolo"]
[Result "1/2-1/2"]
[WhiteElo "1826"]
[BlackElo "1922"]
[TimeControl "300"]
[EndTime "21:09:31 PDT"]
[Termination "Game drawn by repetition"]

1. c4 {[%clk 0:04:56.4]} 1... Nf6 {[%clk 0:04:58.7]} 2. g3 {[%clk 0:04:55.2]}
2... c6 {[%clk 0:04:56.3]} 3. Bg2 {[%clk 0:04:53.8]} 3... d5 {[%clk 0:04:54.2]}
4. Nf3 {[%clk 0:04:52.1]} 4... Bf5 {[%clk 0:04:52.1]} 5. O-O {[%clk 0:04:50.2]}
5... e6 {[%clk 0:04:51.1]} 6. b3 {[%clk 0:04:48]} 6... Bd6 {[%clk 0:04:49.6]} 7.
Bb2 {[%clk 0:04:46.6]} 7... O-O {[%clk 0:04:48.4]} 8. d3 {[%clk 0:04:45.6]} 8...
Nbd7 {[%clk 0:04:47.3]} 9. Nbd2 {[%clk 0:04:44.3]} 9... Bg6 {[%clk 0:04:46.1]}
10. Re1 {[%clk 0:04:41.9]} 10... Re8 {[%clk 0:04:44.6]} 11. e4 {[%clk
0:04:37.8]} 11... Bc5 {[%clk 0:04:31.4]} 12. d4 {[%clk 0:04:32.5]} 12... Bf8
{[%clk 0:04:29]} 13. e5 {[%clk 0:04:27.4]} 13... Ne4 {[%clk 0:04:27.5]} 14. Nh4
{[%clk 0:04:20.9]} 14... Nxd2 {[%clk 0:04:25.7]} 15. Qxd2 {[%clk 0:04:15.7]}
15... f6 {[%clk 0:04:22.6]} 16. Nxg6 {[%clk 0:04:12.8]} 16... hxg6 {[%clk
0:04:21.8]} 17. Qc2 {[%clk 0:04:00.5]} 17... f5 {[%clk 0:04:20.3]} 18. f4 {[%clk
0:03:57]} 18... Bb4 {[%clk 0:04:18.2]} 19. Rf1 {[%clk 0:03:44.4]} 19... Qe7
{[%clk 0:04:15.2]} 20. a3 {[%clk 0:03:42.4]} 20... Ba5 {[%clk 0:04:13.2]} 21. b4
{[%clk 0:03:39.2]} 21... Bc7 {[%clk 0:04:11.8]} 22. cxd5 {[%clk 0:03:37.3]}
22... exd5 {[%clk 0:04:05.5]} 23. Bxd5+ {[%clk 0:03:34.3]} 23... cxd5 {[%clk
0:03:59.6]} 24. Qxc7 {[%clk 0:03:32.9]} 24... Rab8 {[%clk 0:03:57.1]} 25. Rac1
{[%clk 0:03:22.3]} 25... Nb6 {[%clk 0:03:52.1]} 26. Qc2 {[%clk 0:03:13.1]} 26...
Nc4 {[%clk 0:03:49.8]} 27. Qb3 {[%clk 0:03:08.2]} 27... Qe6 {[%clk 0:03:46.9]}
28. a4 {[%clk 0:03:03.3]} 28... Re7 {[%clk 0:03:45.3]} 29. b5 {[%clk 0:03:01.8]}
29... Rc7 {[%clk 0:03:43.9]} 30. Ba3 {[%clk 0:02:55.1]} 30... Rbc8 {[%clk
0:03:42]} 31. Qb4 {[%clk 0:02:25.8]} 31... Qb6 {[%clk 0:03:30.2]} 32. Bb2 {[%clk
0:02:10.9]} 32... Kf7 {[%clk 0:03:16.3]} 33. Rfe1 {[%clk 0:02:05.7]} 33... Ke6
{[%clk 0:03:13.4]} 34. Kg2 {[%clk 0:02:04.5]} 34... a5 {[%clk 0:03:06.6]} 35.
Qb3 {[%clk 0:01:56.4]} 35... Nxb2 {[%clk 0:02:47.1]} 36. Qxb2 {[%clk 0:01:54.8]}
36... Rxc1 {[%clk 0:02:46.4]} 37. Rxc1 {[%clk 0:01:53.8]} 37... Rxc1 {[%clk
0:02:45.2]} 38. Qxc1 {[%clk 0:01:52.8]} 38... Qxd4 {[%clk 0:02:44.3]} 39. Qc8+
{[%clk 0:01:51.6]} 39... Ke7 {[%clk 0:02:41.2]} 40. Qc7+ {[%clk 0:01:50.2]}
40... Kf8 {[%clk 0:02:36.2]} 41. Qd8+ {[%clk 0:01:48.6]} 41... Kf7 {[%clk
0:02:34.8]} 42. Qd7+ {[%clk 0:01:44.1]} 42... Kg8 {[%clk 0:02:33.6]} 43. Qxb7
{[%clk 0:01:43.1]} 43... Qe4+ {[%clk 0:02:32.1]} 44. Kf2 {[%clk 0:01:41.6]}
44... Qc2+ {[%clk 0:02:29.9]} 45. Kf3 {[%clk 0:01:39.3]} 45... Qd1+ {[%clk
0:02:27.4]} 46. Kf2 {[%clk 0:01:38.2]} 46... Qc2+ {[%clk 0:02:20]} 47. Kg1
{[%clk 0:01:36]} 47... Qc5+ {[%clk 0:02:13.7]} 48. Kg2 {[%clk 0:01:34.1]} 48...
Qc2+ {[%clk 0:02:11.1]} 49. Kg1 {[%clk 0:01:32.8]} 49... Qd1+ {[%clk 0:02:09.3]}
50. Kg2 {[%clk 0:01:31.7]} 50... Qe2+ {[%clk 0:02:08.1]} 51. Kg1 {[%clk
0:01:30.9]} 51... Qe1+ {[%clk 0:01:59.4]} 52. Kg2 {[%clk 0:01:30]} 52... Qe2+
{[%clk 0:01:58.5]} 53. Kg1 {[%clk 0:01:29]} 53... Qe1+ {[%clk 0:01:58]} 54. Kg2
{[%clk 0:01:25.4]} 54... Qe2+ {[%clk 0:01:57.6]} 1/2-1/2

[Event "Live Chess"]
[Site "Chess.com"]
[Date "2023.05.21"]
[Round "-"]
[White "Tushinskiy"]
[Black "yarek"]
[Result "1-0"]
[WhiteElo "2212"]
[BlackElo "1872"]
[TimeControl "300"]
[EndTime "21:10:25 PDT"]
[Termination "Tushinskiy won by resignation"]

1. d4 {[%clk 0:04:58.6]} 1... g6 {[%clk 0:04:56.6]} 2. c3 {[%clk 0:04:58.5]}
2... Bg7 {[%clk 0:04:55.7]} 3. Nf3 {[%clk 0:04:56.7]} 3... c6 {[%clk 0:04:54.6]}
4. Bf4 {[%clk 0:04:55.9]} 4... d5 {[%clk 0:04:53.4]} 5. Nbd2 {[%clk 0:04:55.3]}
5... Nd7 {[%clk 0:04:45.6]} 6. Bg3 {[%clk 0:04:55.2]} 6... c5 {[%clk 0:04:37.3]}
7. e3 {[%clk 0:04:52.8]} 7... b6 {[%clk 0:04:34.2]} 8. Bb5 {[%clk 0:04:50]} 8...
Nf6 {[%clk 0:04:26.3]} 9. Ne5 {[%clk 0:04:47.3]} 9... O-O {[%clk 0:04:23.6]} 10.
Nc6 {[%clk 0:04:44.3]} 10... Qe8 {[%clk 0:04:15.9]} 11. Nf3 {[%clk 0:04:43.1]}
11... a6 {[%clk 0:04:08.5]} 12. Be2 {[%clk 0:04:39.5]} 12... Bb7 {[%clk
0:04:00.4]} 13. Nce5 {[%clk 0:04:37.3]} 13... Ne4 {[%clk 0:03:49.9]} 14. Nxd7
{[%clk 0:04:35.3]} 14... Qxd7 {[%clk 0:03:48.1]} 15. O-O {[%clk 0:04:33.6]}
15... Nxg3 {[%clk 0:03:45.6]} 16. hxg3 {[%clk 0:04:32.4]} 16... Rac8 {[%clk
0:03:37.7]} 17. Qb3 {[%clk 0:04:30.6]} 17... Qd6 {[%clk 0:03:16.2]} 18. Rad1
{[%clk 0:04:26.1]} 18... c4 {[%clk 0:03:11.7]} 19. Qc2 {[%clk 0:04:24.4]} 19...
Bc6 {[%clk 0:03:03.5]} 20. Rfe1 {[%clk 0:04:22.7]} 20... Bd7 {[%clk 0:03:02.1]}
21. e4 {[%clk 0:04:19.3]} 21... dxe4 {[%clk 0:02:55]} 22. Qxe4 {[%clk
0:04:19.2]} 22... Bf5 {[%clk 0:02:50.4]} 23. Qe3 {[%clk 0:04:17.5]} 23... b5
{[%clk 0:02:35.2]} 24. Bf1 {[%clk 0:04:15.2]} 24... e6 {[%clk 0:02:30.1]} 25.
Nh2 {[%clk 0:04:04.3]} 25... h5 {[%clk 0:02:24.9]} 26. Nf3 {[%clk 0:03:58.3]}
26... Bg4 {[%clk 0:02:19.8]} 27. Be2 {[%clk 0:03:55]} 27... Bxf3 {[%clk
0:02:17.1]} 28. Bxf3 {[%clk 0:03:52.7]} 28... Rfe8 {[%clk 0:02:13.5]} 29. Re2
{[%clk 0:03:51.6]} 29... a5 {[%clk 0:02:07.3]} 30. Rde1 {[%clk 0:03:50]} 30...
b4 {[%clk 0:02:03.1]} 31. Qg5 {[%clk 0:03:46]} 31... Kh8 {[%clk 0:01:57.4]} 32.
Qxa5 {[%clk 0:03:42.8]} 32... bxc3 {[%clk 0:01:53.7]} 33. bxc3 {[%clk
0:03:41.9]} 33... Ra8 {[%clk 0:01:52.1]} 34. Bxa8 {[%clk 0:03:39.8]} 1-0

[Event "Live Chess"]
[Site "Chess.com"]
[Date "2023.05.21"]
[Round "-"]
[White "KeithArkell"]
[Black "Pablo_dmp"]
[Result "1-0"]
[WhiteElo "2556"]
[BlackElo "1844"]
[TimeControl "300"]
[EndTime "21:10:45 PDT"]
[Termination "KeithArkell won by resignation"]

1. d4 {[%clk 0:04:58.8]} 1... c5 {[%clk 0:04:55.8]} 2. d5 {[%clk 0:04:57.7]}
2... d6 {[%clk 0:04:50.9]} 3. Nc3 {[%clk 0:04:55.3]} 3... e5 {[%clk 0:04:45.5]}
4. dxe6 {[%clk 0:04:53.4]} 4... Bxe6 {[%clk 0:04:43.9]} 5. e4 {[%clk 0:04:52.7]}
5... Nc6 {[%clk 0:04:41.8]} 6. Nf3 {[%clk 0:04:51.1]} 6... g6 {[%clk 0:04:39.2]}
7. Ng5 {[%clk 0:04:48.3]} 7... Bg7 {[%clk 0:04:30.6]} 8. Nxe6 {[%clk 0:04:47.4]}
8... fxe6 {[%clk 0:04:30.5]} 9. Bc4 {[%clk 0:04:46.4]} 9... Nd4 {[%clk
0:04:20.9]} 10. Be3 {[%clk 0:04:40]} 10... Qe7 {[%clk 0:04:07.7]} 11. Nb5 {[%clk
0:04:32.1]} 11... Nxb5 {[%clk 0:03:24.7]} 12. Bxb5+ {[%clk 0:04:29.7]} 12... Kf7
{[%clk 0:03:17]} 13. c3 {[%clk 0:04:28.6]} 13... a6 {[%clk 0:03:14.6]} 14. Be2
{[%clk 0:04:25.6]} 14... Nf6 {[%clk 0:03:10]} 15. e5 {[%clk 0:04:21.5]} 15...
Nd5 {[%clk 0:03:06.1]} 16. exd6 {[%clk 0:04:16.3]} 16... Nxe3 {[%clk 0:03:00.4]}
17. dxe7 {[%clk 0:04:15.1]} 17... Nxd1 {[%clk 0:02:58.6]} 18. Rxd1 {[%clk
0:04:14.2]} 18... Kxe7 {[%clk 0:02:55.8]} 19. O-O {[%clk 0:04:12.6]} 19... Rad8
{[%clk 0:02:48.4]} 20. Bf3 {[%clk 0:04:10.5]} 20... b6 {[%clk 0:02:27.8]} 21.
Bb7 {[%clk 0:04:08.2]} 21... a5 {[%clk 0:02:25.9]} 22. Ba6 {[%clk 0:03:24]}
22... Rd5 {[%clk 0:01:42.9]} 23. Bc4 {[%clk 0:03:21.5]} 23... Rxd1 {[%clk
0:01:36.8]} 24. Rxd1 {[%clk 0:03:19.5]} 24... Rd8 {[%clk 0:01:35.1]} 25. Rxd8
{[%clk 0:03:18.3]} 25... Kxd8 {[%clk 0:01:35]} 26. Bxe6 {[%clk 0:03:16.9]} 26...
Kc7 {[%clk 0:01:30.8]} 27. a4 {[%clk 0:03:14.3]} 27... Kd6 {[%clk 0:01:22.2]}
28. Bg8 {[%clk 0:03:13]} 28... h6 {[%clk 0:01:19.7]} 29. Kf1 {[%clk 0:03:12]}
29... Ke5 {[%clk 0:01:11.4]} 30. Ke2 {[%clk 0:03:10.6]} 30... Ke4 {[%clk
0:01:07.3]} 31. Bh7 {[%clk 0:03:08.6]} 31... Kf5 {[%clk 0:01:02.3]} 32. Kd3
{[%clk 0:03:05.3]} 32... Kf6 {[%clk 0:01:00.5]} 33. Kc4 {[%clk 0:03:01.8]} 33...
g5 {[%clk 0:00:58.4]} 34. Kb5 {[%clk 0:02:58.7]} 1-0

[Event "Live Chess"]
[Site "Chess.com"]
[Date "2023.05.21"]
[Round "-"]
[White "Conradical12"]
[Black "Long1968"]
[Result "1-0"]
[WhiteElo "1645"]
[BlackElo "1061"]
[TimeControl "300"]
[EndTime "21:11:03 PDT"]
[Termination "Conradical12 won on time"]

1. e4 {[%clk 0:04:58.1]} 1... e6 {[%clk 0:04:57]} 2. Nf3 {[%clk 0:04:50.6]} 2...
d5 {[%clk 0:04:54.8]} 3. exd5 {[%clk 0:04:48.1]} 3... exd5 {[%clk 0:04:52.4]} 4.
d4 {[%clk 0:04:47.3]} 4... Nf6 {[%clk 0:04:48.9]} 5. Nc3 {[%clk 0:04:46.6]} 5...
Bg4 {[%clk 0:04:45.4]} 6. Be2 {[%clk 0:04:45.1]} 6... Be7 {[%clk 0:04:40.9]} 7.
O-O {[%clk 0:04:44.5]} 7... O-O {[%clk 0:04:38.3]} 8. Re1 {[%clk 0:04:41.5]}
8... c6 {[%clk 0:04:31.8]} 9. Ne5 {[%clk 0:04:39]} 9... Be6 {[%clk 0:04:14.2]}
10. Bg5 {[%clk 0:04:34.8]} 10... Nbd7 {[%clk 0:03:58.8]} 11. Bd3 {[%clk
0:04:28.6]} 11... c5 {[%clk 0:03:38.5]} 12. dxc5 {[%clk 0:04:18.4]} 12... Bxc5
{[%clk 0:03:24.7]} 13. Nxd7 {[%clk 0:04:09.4]} 13... Bxd7 {[%clk 0:02:49.5]} 14.
Nxd5 {[%clk 0:04:05.2]} 14... Bxf2+ {[%clk 0:02:09.7]} 15. Kxf2 {[%clk
0:04:00.9]} 15... Ng4+ {[%clk 0:02:06.1]} 16. Kg1 {[%clk 0:03:53.4]} 16... Qxg5
{[%clk 0:02:02.1]} 17. Qf3 {[%clk 0:03:38.3]} 17... Ne5 {[%clk 0:01:42.4]} 18.
Qe4 {[%clk 0:03:30.8]} 18... Nxd3 {[%clk 0:01:35.5]} 19. Ne7+ {[%clk 0:03:21]}
19... Kh8 {[%clk 0:01:27.1]} 20. Qxd3 {[%clk 0:03:19.2]} 20... Rad8 {[%clk
0:01:12.7]} 21. Qe2 {[%clk 0:02:49.9]} 21... Rfe8 {[%clk 0:00:55.3]} 22. Rad1
{[%clk 0:02:44.1]} 22... Bc6 {[%clk 0:00:13.5]} 23. Rxd8 {[%clk 0:02:19.9]} 1-0

[Event "Live Chess"]
[Site "Chess.com"]
[Date "2023.05.21"]
[Round "-"]
[White "BostonStrangler"]
[Black "mirandaasilva"]
[Result "1-0"]
[WhiteElo "2071"]
[BlackElo "1687"]
[TimeControl "300"]
[EndTime "21:11:34 PDT"]
[Termination "BostonStrangler won by resignation"]

1. Nf3 {[%clk 0:04:52.3]} 1... g6 {[%clk 0:04:58.6]} 2. d4 {[%clk 0:04:49.2]}
2... Nf6 {[%clk 0:04:55.8]} 3. c4 {[%clk 0:04:46.2]} 3... Bg7 {[%clk 0:04:54.8]}
4. Nc3 {[%clk 0:04:45.7]} 4... d5 {[%clk 0:04:46.7]} 5. cxd5 {[%clk 0:04:43.4]}
5... Nxd5 {[%clk 0:04:46.6]} 6. e4 {[%clk 0:04:43]} 6... Nxc3 {[%clk 0:04:44.3]}
7. bxc3 {[%clk 0:04:42.9]} 7... c5 {[%clk 0:04:43.2]} 8. Be3 {[%clk 0:04:40.5]}
8... Qa5 {[%clk 0:04:40.6]} 9. Qd2 {[%clk 0:04:38.8]} 9... O-O {[%clk
0:04:37.9]} 10. Bc4 {[%clk 0:04:35.6]} 10... Bg4 {[%clk 0:04:32.1]} 11. Rb1
{[%clk 0:04:11.9]} 11... Bxf3 {[%clk 0:03:37.9]} 12. gxf3 {[%clk 0:04:08.9]}
12... cxd4 {[%clk 0:03:36.3]} 13. cxd4 {[%clk 0:04:07.2]} 13... Qxd2+ {[%clk
0:03:25.7]} 14. Kxd2 {[%clk 0:04:07.1]} 14... Rc8 {[%clk 0:03:21]} 15. Bd5
{[%clk 0:04:00.7]} 15... Nc6 {[%clk 0:03:17.4]} 16. Rxb7 {[%clk 0:03:54]} 16...
Nxd4 {[%clk 0:03:05.6]} 17. Bxd4 {[%clk 0:03:52.6]} 17... Bxd4 {[%clk
0:03:03.3]} 18. Rxe7 {[%clk 0:03:52]} 18... Rab8 {[%clk 0:02:42.6]} 19. Rxf7
{[%clk 0:03:49.7]} 19... Kh8 {[%clk 0:02:40.5]} 20. Bb7 {[%clk 0:03:16.2]} 20...
Rc5 {[%clk 0:01:29.3]} 21. Rc1 {[%clk 0:02:56.7]} 21... Rb5 {[%clk 0:01:06.8]}
22. Rcc7 {[%clk 0:02:49.5]} 22... h5 {[%clk 0:00:43.2]} 23. Rh7+ {[%clk
0:02:34.7]} 23... Kg8 {[%clk 0:00:40.7]} 24. Bd5+ {[%clk 0:02:31.8]} 24... Kf8
{[%clk 0:00:40.2]} 25. Kd3 {[%clk 0:02:19.1]} 25... Be5 {[%clk 0:00:30.4]} 26.
Rcf7+ {[%clk 0:02:16.2]} 26... Ke8 {[%clk 0:00:26.2]} 27. Re7+ {[%clk 0:02:14]}
1-0